fUST/lending_fUST_20240830
["ID","MTS","AMOUNT","RATE_DAILY","PERIOD"]
[336645567,1724997044703,-238.59122016,0.00022996,5]
[336645568,1724997044713,-504.463096,0.00022996,5]
[336645569,1724997044722,-501.85437594,0.00022996,5]
[336645570,1724997044730,-500.0,0.00022996,5]
[336645571,1724997044739,-500.0,0.00022996,5]
[336645572,1724997044748,-500.0,0.00022996,5]
[336645573,1724997044757,-500.0,0.00022996,5]
[336645574,1724997044766,-502.71099681,0.00022996,5]
[336645575,1724997044774,-500.0,0.00022996,5]
[336645576,1724997044783,-500.0,0.00022996,5]
[336645577,1724997044792,-500.0,0.00022996,5]
[336645578,1724997044888,-500.0,0.00022996,5]
[336645579,1724997044898,-500.0,0.00022996,5]
[336645580,1724997044907,-500.0,0.00022996,5]
[336645581,1724997044917,-500.0,0.00022996,5]
[336645582,1724997044928,-500.0,0.00022996,5]
[336645583,1724997044938,-569.31,0.00022996,5]
[336645584,1724997044949,-500.0,0.00022996,5]
[336645585,1724997044960,-500.0,0.00022996,5]
[336645586,1724997044971,-500.0,0.00022996,5]
[336645587,1724997044981,-554.50748821,0.00022996,5]
[336645588,1724997044993,-500.0,0.00022996,5]
[336645589,1724997045002,-500.0,0.00022996,5]
[336645590,1724997045011,-335.64522089,0.00022996,5]
[336645591,1724997045020,-500.0,0.00022996,5]
[336645592,1724997045030,-500.0,0.00022996,5]
[336645593,1724997045039,-500.0,0.00022996,5]
[336645594,1724997045050,-500.0,0.00022996,5]
[336645595,1724997045059,-500.0,0.00022996,5]
[336645596,1724997045067,-500.0,0.00022996,5]
[336645597,1724997045076,-500.0,0.00022996,5]
[336645598,1724997045086,-500.0,0.00022996,5]
[336645599,1724997045096,-500.0,0.00022996,5]
[336645600,1724997045105,-500.0,0.00022996,5]
[336645601,1724997045115,-500.0,0.00022996,5]
[336645602,1724997045124,-500.0,0.00022996,5]
[336645603,1724997045133,-500.0,0.00022996,5]
[336645604,1724997045142,-500.0,0.00022996,5]
[336645605,1724997045152,-500.0,0.00022996,5]
[336645606,1724997045161,-500.0,0.00022996,5]
[336645607,1724997045170,-500.0,0.00022996,5]
[336645608,1724997045180,-501.86457023,0.00022996,5]
[336645609,1724997045189,-500.0,0.00022996,5]
[336645610,1724997045198,-500.0,0.00022996,5]
[336645611,1724997045207,-500.0,0.00022996,5]
[336645612,1724997045216,-501.64300067,0.00022996,5]
[336645613,1724997045225,-500.0,0.00022996,5]
[336645614,1724997045236,-500.0,0.00022996,5]
[336645615,1724997045245,-500.0,0.00022996,5]
[336645617,1724997045255,-500.0,0.00022996,5]
[336645618,1724997045264,-506.17015623,0.00022996,5]
[336645619,1724997045273,-500.0,0.00022996,5]
[336645621,1724997045282,-500.0,0.00022996,5]
[336645622,1724997045292,-500.0,0.00022996,5]
[336645623,1724997045301,-500.0,0.00022996,5]
[336645625,1724997045311,-500.0,0.00022996,5]
[336645627,1724997045320,-500.0,0.00022996,5]
[336645629,1724997045330,-502.21806585,0.00022996,5]
[336645631,1724997045339,-500.0,0.00022996,5]
[336645633,1724997045348,-500.0,0.00022996,5]
[336645635,1724997045358,-500.0,0.00022996,5]
[336645637,1724997045367,-500.0,0.00022996,5]
[336645639,1724997045377,-500.0,0.00022996,5]
[336645641,1724997045386,-500.0,0.00022996,5]
[336645643,1724997045396,-500.0,0.00022996,5]
[336645645,1724997045405,-500.0,0.00022996,5]
[336645647,1724997045415,-500.0,0.00022996,5]
[336645649,1724997045424,-500.0,0.00022996,5]
[336645651,1724997045434,-500.0,0.00022996,5]
[336645653,1724997045443,-500.0,0.00022996,5]
[336645655,1724997045452,-500.0,0.00022996,5]
[336645657,1724997045465,-500.0,0.00022996,5]
[336645659,1724997045474,-500.0,0.00022996,5]
[336645661,1724997045483,-500.0,0.00022996,5]
[336645663,1724997045492,-500.0,0.00022996,5]
[336645665,1724997045502,-500.0,0.00022996,5]
[336645667,1724997045512,-500.0,0.00022996,5]
[336645669,1724997045521,-500.0,0.00022996,5]
[336645671,1724997045532,-500.0,0.00022996,5]
[336645673,1724997045541,-500.0,0.00022996,5]
[336645675,1724997045550,-500.0,0.00022996,5]
[336645677,1724997045560,-500.0,0.00022996,5]
[336645679,1724997045569,-500.0,0.00022996,5]
[336645681,1724997045578,-500.0,0.00022996,5]
[336645683,1724997045587,-500.0,0.00022996,5]
[336645685,1724997045596,-500.0,0.00022996,5]
[336645687,1724997045606,-512.36830498,0.00022996,5]
[336645689,1724997045615,-501.92519864,0.00022996,5]
[336645691,1724997045627,-502.2006553,0.00022996,2]
[336645693,1724997045636,-500.0,0.00022996,5]
[336645695,1724997045645,-504.73472263,0.00022996,5]
[336645697,1724997045654,-500.0,0.00022996,30]
[336645699,1724997045663,-500.0,0.00022996,5]
[336645701,1724997045672,-500.0,0.00022996,5]
[336645703,1724997045682,-500.0,0.00022996,5]
[336645705,1724997045691,-500.0,0.00022996,5]
[336645707,1724997045701,-500.0,0.00022996,5]
[336645709,1724997045710,-500.0,0.00022996,5]
[336645711,1724997045719,-500.0,0.00022996,5]
[336645713,1724997045728,-500.0,0.00022996,5]
[336645715,1724997045737,-500.0,0.00022996,5]
[336645717,1724997045746,-500.0,0.00022996,5]
[336645718,1724997045755,-500.0,0.00022996,5]
[336645721,1724997045765,-500.0,0.00022996,5]
[336645723,1724997045774,-500.0,0.00022996,5]
[336645725,1724997045786,-500.0,0.00022996,5]
[336645727,1724997045796,-500.0,0.00022996,5]
[336645729,1724997045806,-503.19822903,0.00022996,5]
[336645731,1724997045817,-500.0,0.00022996,5]
[336645733,1724997045827,-500.0,0.00022996,5]
[336645735,1724997045837,-500.0,0.00022996,5]
[336645737,1724997045846,-500.0,0.00022996,5]
[336645739,1724997045856,-500.0,0.00022996,5]
[336645741,1724997045865,-500.0,0.00022996,5]
[336645743,1724997045875,-500.0,0.00022996,5]
[336645745,1724997045885,-500.0,0.00022996,5]
[336645747,1724997045894,-501.61755873,0.00022996,5]
[336645749,1724997045904,-151.0,0.00022996,7]
[336645751,1724997045914,-500.0,0.00022996,5]
[336645753,1724997045924,-500.0,0.00022996,5]
[336645756,1724997045934,-500.0,0.00022996,5]
[336645758,1724997045946,-406.21112738,0.00022996,5]
[336645770,1724997046050,-500.0,0.00021097,2]
[336645772,1724997046061,-1168.41,0.00022467,5]
[336645774,1724997046071,-1168.41,0.00022741,5]
[336645776,1724997046080,-93.78887262,0.00022996,5]
[336645779,1724997046092,-500.77128868,0.00022996,5]
[336645781,1724997046102,-193.195459,0.00022996,7]
[336645783,1724997046112,-500.0,0.00022996,5]
[336645785,1724997046122,-500.0,0.00022996,5]
[336645788,1724997046133,-193.195459,0.00022996,7]
[336645790,1724997046143,-500.0,0.00022996,5]
[336645792,1724997046154,-500.0,0.00022996,5]
[336645796,1724997046164,-500.0,0.00022997,5]
[336645799,1724997046176,-500.0,0.00022997,5]
[336645802,1724997046185,-463.48166948,0.00022997,5]
[336645805,1724997046195,-500.0,0.00022997,5]
[336645808,1724997046206,-500.0,0.00022997,5]
[336645810,1724997046217,-500.0,0.00022997,5]
[336645812,1724997046227,-500.0,0.00022997,5]
[336645814,1724997046237,-806.81,0.00022997,5]
[336645816,1724997046246,-806.81,0.00022997,5]
[336645818,1724997046256,-503.95821972,0.00022998,5]
[336645820,1724997046266,-503.85304149,0.00022998,5]
[336645822,1724997046275,-503.6795894,0.00022998,5]
[336645824,1724997046285,-503.44133731,0.00022998,5]
[336645826,1724997046294,-503.07985641,0.00022998,5]
[336645828,1724997046305,-583.23115109,0.00022998,5]
[336645830,1724997046314,-500.0,0.00022998,5]
[336645832,1724997046324,-500.0,0.00022998,5]
[336645834,1724997046334,-503.5435259,0.00022998,5]
[336645836,1724997046345,-501.43378301,0.00022998,5]
[336645838,1724997046354,-517.66271411,0.00022998,5]
[336645840,1724997046364,-503.30364692,0.00022998,5]
[336645842,1724997046373,-504.78037028,0.00022998,5]
[336645844,1724997046383,-500.0,0.00022998,5]
[336645846,1724997046392,-501.40914434,0.00022998,5]
[336645848,1724997046402,-502.73205741,0.00022998,5]
[336645850,1724997046412,-503.75109237,0.00022998,5]
[336645852,1724997046422,-520.45263567,0.00022998,5]
[336645854,1724997046432,-500.0,0.00022998,5]
[336645856,1724997046442,-500.0,0.00022998,5]
[336645858,1724997046453,-506.80525708,0.00022998,5]
[336645860,1724997046465,-500.0,0.00022998,5]
[336645862,1724997046475,-500.0,0.00022998,5]
[336645864,1724997046485,-503.03297034,0.00022998,5]
[336645866,1724997046494,-500.0,0.00022998,5]
[336645868,1724997046505,-500.0,0.00022998,5]
[336645870,1724997046514,-644.06456395,0.00022998,5]
[336645872,1724997046523,-500.0,0.00022998,5]
[336645874,1724997046534,-500.0,0.00022998,5]
[336645876,1724997046546,-500.0,0.00022998,5]
[336645878,1724997046556,-500.0,0.00022998,5]
[336645880,1724997046566,-505.81580382,0.00022998,5]
[336645882,1724997046576,-503.85085614,0.00022998,5]
[336645884,1724997046586,-500.0,0.00022998,5]
[336645886,1724997046596,-188.16701298,0.00022998,5]
[336645888,1724997046605,-505.27949892,0.00022998,5]
[336645890,1724997046616,-500.0,0.00022998,5]
[336645892,1724997046625,-500.0,0.00022998,5]
[336645894,1724997046636,-500.0,0.00022998,5]
[336645896,1724997046645,-500.0,0.00022998,5]
[336645897,1724997046654,-500.0,0.00022998,5]
[336645899,1724997046664,-500.0,0.00022998,5]
[336645901,1724997046673,-311.31275787,0.00022998,5]
[336645903,1724997046684,-500.0,0.00022998,5]
[336645905,1724997046694,-500.0,0.00022998,5]
[336645907,1724997046703,-500.0,0.00022998,5]
[336645909,1724997046714,-500.0,0.00022998,5]
[336645911,1724997046724,-500.0,0.00022998,5]
[336645913,1724997046734,-501.95712292,0.00022998,5]
[336645915,1724997046746,-500.0,0.00022998,5]
[336645917,1724997046757,-500.0,0.00022998,5]
[336645920,1724997046766,-500.87094952,0.00022998,5]
[336645922,1724997046775,-500.0,0.00022998,5]
[336645923,1724997046784,-500.0,0.00022998,5]
[336645925,1724997046794,-500.0,0.00022998,5]
[336645927,1724997046804,-500.0,0.00022998,5]
[336645929,1724997046813,-365.44400759,0.00022998,5]
[336645931,1724997046822,-522.60127391,0.00022998,5]
[336645933,1724997046831,-500.0,0.00022998,5]
[336645935,1724997046840,-603.74315927,0.00022998,5]
[336645937,1724997046849,-500.0,0.00022998,5]
[336645938,1724997046859,-505.36509369,0.00022998,5]
[336645940,1724997046869,-493.41178469,0.00022998,5]
[336645942,1724997046878,-500.0,0.00022998,5]
[336645944,1724997046887,-552.29,0.00022998,5]
[336645946,1724997046897,-412.64158126,0.00022998,5]
[336645948,1724997046910,-90.49465823,0.00022998,5]
[336645950,1724997046920,-500.0,0.00022998,5]
[336645952,1724997046929,-500.0,0.00022998,5]
[336645954,1724997046939,-573.14,0.00022998,5]
[336645956,1724997046949,-371.07159877,0.00022998,5]
[336645958,1724997046960,-500.0,0.00022998,5]
[336645961,1724997046972,-500.0,0.00022998,5]
[336645963,1724997046986,-500.0,0.00022998,5]
[336645965,1724997046997,-500.0,0.00022998,5]
[336645967,1724997047007,-500.0,0.00022998,5]
[336645969,1724997047017,-500.0,0.00022998,5]
[336645971,1724997047027,-572.47813899,0.00022998,5]
[336645981,1724997047037,-500.0,0.00022998,5]
[336645983,1724997047126,-500.0,0.00022998,5]
[336645985,1724997047137,-500.0,0.00022998,5]
[336645987,1724997047146,-501.19908524,0.00022998,5]
[336645989,1724997047155,-500.0,0.00022998,5]
[336645991,1724997047164,-247.531956,0.00022998,5]
[336645994,1724997047175,-500.0,0.00022998,5]
[336645996,1724997047185,-500.0,0.00022998,5]
[336645998,1724997047194,-500.0,0.00022998,5]
[336646000,1724997047205,-507.4503641,0.00022998,5]
[336646002,1724997047215,-502.9959118,0.00022998,5]
[336646004,1724997047226,-501.13271958,0.00022998,5]
[336646006,1724997047235,-500.0,0.00022998,5]
[336646008,1724997047245,-502.81854427,0.00022998,5]
[336646010,1724997047255,-500.0,0.00022998,5]
[336646012,1724997047264,-500.0,0.00022998,5]
[336646014,1724997047274,-502.02583771,0.00022998,5]
[336646016,1724997047285,-503.44055147,0.00022998,5]
[336646018,1724997047295,-504.56187486,0.00022998,5]
[336646020,1724997047306,-503.34773147,0.00022998,5]
[336646022,1724997047316,-501.55363098,0.00022998,5]
[336646024,1724997047325,-501.90025293,0.00022998,5]
[336646026,1724997047334,-500.0,0.00022998,5]
[336646028,1724997047344,-503.58832273,0.00022998,5]
[336646030,1724997047354,-500.0,0.00022998,5]
[336646032,1724997047364,-503.6299513,0.00022998,5]
[336646034,1724997047375,-500.0,0.00022998,5]
[336646036,1724997047384,-500.0,0.00022998,5]
[336646038,1724997047394,-277.57916957,0.00022998,5]
[336646040,1724997047403,-500.0,0.00022998,5]
[336646042,1724997047413,-501.77218136,0.00022998,5]
[336646044,1724997047423,-151.0,0.00022998,7]
[336646046,1724997047433,-151.0,0.00022998,7]
[336646048,1724997047442,-151.0,0.00022998,7]
[336646050,1724997047452,-233.02035,0.00022998,7]
[336646052,1724997047463,-151.0,0.00022998,7]
[336646054,1724997047473,-233.02035,0.00022998,7]
[336646056,1724997047485,-193.195459,0.00022998,7]
[336646058,1724997047494,-193.195459,0.00022998,7]
[336646060,1724997047504,-598.89,0.00023,14]
[336646062,1724997047513,-299.66,0.00023,14]
[336646063,1724997047522,-500.0,0.00023007,5]
[336646064,1724997047532,-2294.15,0.00023015,5]
[336646065,1724997047541,-500.0,0.00023015,5]
[336646066,1724997047552,-3490.78,0.00023015,5]
[336646067,1724997047561,-5579.14,0.00023015,5]
[336646068,1724997047571,-1360.61,0.00023015,5]
[336646069,1724997047581,-1189.51,0.00023015,5]
[336646070,1724997047591,-500.0,0.00023015,5]
[336646072,1724997047600,-500.0,0.00023015,5]
[336646074,1724997047609,-1168.41,0.00023015,5]
[336646076,1724997047618,-9888.70590064,0.00023037,5]
[336646078,1724997047635,-1453.72409936,0.00023037,5]
[336646081,1724997047646,-1705.93,0.00023037,5]
[336646083,1724997047655,-1448.5,0.00023037,5]
[336646085,1724997047664,-500.0,0.00023037,5]
[336646087,1724997047674,-527.35,0.00023037,5]
[336646088,1724997047684,-500.0,0.00023037,5]
[336646090,1724997047695,-2966.83,0.00023037,5]
[336646093,1724997047705,-500.0,0.00023037,5]
[336646095,1724997047714,-743.69,0.00023037,5]
[336646097,1724997047726,-1867.78,0.00023037,5]
[336646099,1724997047736,-2270.01,0.00023037,5]
[336646101,1724997047746,-420.0,0.0002311,2]
[336646103,1724997047758,-806.81,0.00023268,5]
[336646105,1724997047768,-503.47088344,0.0002327,5]
[336646108,1724997047781,-500.0,0.0002327,5]
[336646110,1724997047791,-505.17829042,0.0002327,5]
[336646112,1724997047801,-506.26710308,0.0002327,5]
[336646114,1724997047811,-171.64598505,0.0002327,5]
[336646116,1724997047822,-500.0,0.0002327,5]
[336646118,1724997047832,-500.0,0.0002327,5]
[336646120,1724997047843,-500.0,0.0002327,5]
[336646122,1724997047853,-500.0,0.0002327,5]
[336646124,1724997047864,-191.81529747,0.0002327,5]
[336646127,1724997047876,-500.0,0.0002327,5]
[336646129,1724997047886,-371.21,0.0002327,5]
[336646131,1724997047897,-500.0,0.0002327,5]
[336646133,1724997047908,-500.0,0.0002327,5]
[336646135,1724997047917,-582.79,0.0002327,5]
[336646137,1724997047927,-500.0,0.0002327,5]
[336646139,1724997047936,-500.0,0.0002327,5]
[336646141,1724997047945,-500.0,0.0002327,5]
[336646143,1724997047957,-528.96697157,0.0002327,5]
[336646145,1724997047967,-500.0,0.0002327,5]
[336646147,1724997047976,-500.0,0.0002327,5]
[336646150,1724997047987,-500.0,0.0002327,5]
[336646152,1724997047996,-500.0,0.0002327,5]
[336646154,1724997048006,-500.0,0.0002327,5]
[336646156,1724997048016,-326.3,0.0002327,5]
[336646158,1724997048025,-500.0,0.0002327,5]
[336646160,1724997048035,-500.0,0.0002327,5]
[336646162,1724997048045,-507.38851009,0.0002327,5]
[336646164,1724997048055,-500.0,0.0002327,5]
[336646166,1724997048064,-500.0,0.0002327,5]
[336646168,1724997048073,-500.0,0.0002327,5]
[336646170,1724997048082,-500.0,0.0002327,5]
[336646172,1724997048092,-500.0,0.0002327,5]
[336646174,1724997048102,-500.0,0.0002327,5]
[336646176,1724997048113,-500.0,0.0002327,5]
[336646178,1724997048122,-500.0,0.0002327,5]
[336646180,1724997048133,-500.0,0.0002327,5]
[336646182,1724997048144,-500.0,0.0002327,5]
[336646184,1724997048155,-511.7949906,0.0002327,5]
[336646186,1724997048166,-488.36200788,0.0002327,5]
[336646188,1724997048177,-500.0,0.0002327,5]
[336646190,1724997048187,-500.0,0.0002327,5]
[336646192,1724997048198,-500.0,0.0002327,5]
[336646194,1724997048208,-500.0,0.0002327,5]
[336646196,1724997048218,-328.23224093,0.0002327,5]
[336646198,1724997048227,-500.0,0.0002327,5]
[336646200,1724997048238,-500.0,0.0002327,5]
[336646202,1724997048248,-500.0,0.0002327,5]
[336646204,1724997048258,-500.0,0.0002327,5]
[336646206,1724997048267,-525.34820175,0.0002327,5]
[336646208,1724997048277,-500.0,0.0002327,5]
[336646211,1724997048290,-500.0,0.0002327,5]
[336646213,1724997048301,-500.0,0.0002327,5]
[336646215,1724997048312,-500.0,0.0002327,5]
[336646217,1724997048322,-500.0,0.0002327,5]
[336646219,1724997048332,-500.0,0.0002327,5]
[336646221,1724997048343,-500.0,0.0002327,5]
[336646223,1724997048354,-500.0,0.0002327,5]
[336646225,1724997048363,-507.41473207,0.0002327,5]
[336646227,1724997048373,-151.0,0.00023271,7]
[336646230,1724997048383,-151.0,0.00023271,7]
[336646232,1724997048394,-151.0,0.00023271,7]
[336646234,1724997048405,-233.02035,0.00023271,7]
[336646236,1724997048414,-233.02035,0.00023271,7]
[336646238,1724997048424,-806.81,0.00023271,5]
[336646240,1724997048434,-216.58466152,0.00023272,5]
[336646242,1724997048446,-500.0,0.00023272,5]
[336646244,1724997048458,-600.0,0.00023272,2]
[336646246,1724997048474,-503.88841009,0.00023272,5]
[336646248,1724997048484,-503.61833993,0.00023272,5]
[336646250,1724997048494,-555.76981899,0.00023272,5]
[336646252,1724997048504,-500.0,0.00023272,5]
[336646254,1724997048514,-553.10953665,0.00023272,5]
[336646257,1724997048524,-500.0,0.00023272,5]
[336646259,1724997048534,-500.0,0.00023272,5]
[336646261,1724997048544,-223.27307692,0.00023272,5]
[336646263,1724997048554,-500.0,0.00023272,5]
[336646265,1724997048563,-470.84,0.00023272,5]
[336646267,1724997048573,-500.0,0.00023272,5]
[336646269,1724997048582,-500.0,0.00023272,5]
[336646271,1724997048591,-500.0,0.00023272,5]
[336646273,1724997048601,-500.0,0.00023272,5]
[336646275,1724997048611,-500.0,0.00023272,5]
[336646277,1724997048620,-503.29847344,0.00023272,5]
[336646279,1724997048629,-277.81187765,0.00023272,5]
[336646281,1724997048639,-500.0,0.00023272,5]
[336646283,1724997048648,-400.96863812,0.00023272,5]
[336646285,1724997048657,-500.0,0.00023272,5]
[336646287,1724997048667,-500.0,0.00023272,5]
[336646289,1724997048676,-504.70438617,0.00023272,5]
[336646291,1724997048686,-500.0,0.00023272,5]
[336646293,1724997048697,-500.0,0.00023272,5]
[336646295,1724997048707,-235.95090166,0.00023272,5]
[336646297,1724997048717,-500.0,0.00023272,5]
[336646300,1724997048728,-500.0,0.00023272,5]
[336646302,1724997048737,-348.82455249,0.00023272,5]
[336646304,1724997048747,-500.0,0.00023272,5]
[336646306,1724997048757,-500.0,0.00023272,5]
[336646308,1724997048767,-321.29,0.00023272,5]
[336646310,1724997048776,-339.88721645,0.00023272,5]
[336646312,1724997048786,-500.0,0.00023272,5]
[336646314,1724997048796,-500.0,0.00023272,5]
[336646316,1724997048807,-500.0,0.00023272,5]
[336646318,1724997048816,-500.0,0.00023272,5]
[336646320,1724997048827,-188.03,0.00023272,5]
[336646322,1724997048836,-202.68,0.00023272,5]
[336646324,1724997048846,-485.28117616,0.00023272,5]
[336646326,1724997048856,-500.0,0.00023281,5]
[336646328,1724997048866,-2294.15,0.00023289,5]
[336646330,1724997048875,-3490.78,0.00023289,5]
[336646332,1724997048885,-5579.14,0.00023289,5]
[336646334,1724997048894,-1360.61,0.00023289,5]
[336646337,1724997048904,-1189.51,0.00023289,5]
[336646339,1724997048913,-500.0,0.00023289,5]
[336646341,1724997048923,-500.0,0.00023289,5]
[336646343,1724997048932,-1168.41,0.00023289,5]
[336646345,1724997048942,-806.81,0.0002331,5]
[336646347,1724997048951,-11342.43,0.00023311,5]
[336646349,1724997048961,-1705.93,0.00023311,5]
[336646351,1724997048970,-1448.5,0.00023311,5]
[336646353,1724997048979,-500.0,0.00023311,5]
[336646355,1724997048989,-527.35,0.00023311,5]
[336646357,1724997048999,-500.0,0.00023311,5]
[336646359,1724997049008,-2966.83,0.00023311,5]
[336646361,1724997049019,-500.0,0.00023311,5]
[336646363,1724997049028,-743.69,0.00023311,5]
[336646365,1724997049037,-1867.78,0.00023311,5]
[336646367,1724997049047,-2270.01,0.00023311,5]
[336646369,1724997049057,-465.00091077,0.0002344,2]
[336646372,1724997049066,-500.0,0.00023544,5]
[336646374,1724997049076,-500.0,0.00023544,5]
[336646376,1724997049086,-500.0,0.00023544,5]
[336646378,1724997049096,-500.0,0.00023544,5]
[336646380,1724997049105,-500.0,0.00023544,5]
[336646382,1724997049115,-308.30179477,0.00023544,5]
[336646384,1724997049124,-306.33,0.00023544,5]
[336646386,1724997049134,-500.0,0.00023544,5]
[336646396,1724997049219,-500.0,0.00023544,5]
[336646398,1724997049230,-500.0,0.00023544,5]
[336646400,1724997049240,-500.0,0.00023544,5]
[336646402,1724997049249,-500.0,0.00023544,5]
[336646404,1724997049258,-622.28,0.00023544,5]
[336646406,1724997049268,-592.18,0.00023544,5]
[336646408,1724997049278,-500.0,0.00023544,5]
[336646410,1724997049288,-505.05595094,0.00023544,5]
[336646412,1724997049299,-500.0,0.00023544,5]
[336646414,1724997049309,-560.66709121,0.00023544,5]
[336646416,1724997049319,-151.0,0.00023544,7]
[336646419,1724997049329,-500.0,0.00023544,5]
[336646421,1724997049339,-193.195459,0.00023544,7]
[336646423,1724997049349,-193.195459,0.00023544,7]
[336646425,1724997049358,-593.26359141,0.00023546,2]
[336646427,1724997049369,-327.90010363,0.00023546,5]
[336646429,1724997049379,-500.0,0.00023546,5]
[336646431,1724997049389,-500.0,0.00023546,5]
[336646433,1724997049398,-176.48961431,0.00023546,5]
[336646435,1724997049408,-500.0,0.00023546,5]
[336646437,1724997049417,-250.51567376,0.00023546,5]
[336646439,1724997049428,-500.0,0.00023546,5]
[336646441,1724997049438,-500.0,0.00023546,5]
[336646443,1724997049448,-190.26,0.00023546,5]
[336646445,1724997049458,-577.55680481,0.00023546,5]
[336646447,1724997049472,-500.0,0.00023546,5]
[336646449,1724997049482,-500.0,0.00023546,5]
[336646451,1724997049491,-500.0,0.00023555,5]
[336646454,1724997049502,-2294.15,0.00023563,5]
[336646456,1724997049513,-3490.78,0.00023563,5]
[336646458,1724997049523,-5579.14,0.00023563,5]
[336646460,1724997049533,-1360.61,0.00023563,5]
[336646462,1724997049543,-1189.51,0.00023563,5]
[336646464,1724997049554,-500.0,0.00023563,5]
[336646466,1724997049564,-500.0,0.00023563,5]
[336646468,1724997049574,-1168.41,0.00023563,5]
[336646470,1724997049584,-806.81,0.00023584,5]
[336646472,1724997049594,-151.0,0.00023585,7]
[336646474,1724997049604,-11342.43,0.00023585,5]
[336646477,1724997049614,-708.599085,0.00023585,7]
[336646479,1724997049624,-708.599085,0.00023585,7]
[336646481,1724997049634,-1705.93,0.00023585,5]
[336646483,1724997049643,-1448.5,0.00023585,5]
[336646485,1724997049653,-151.0,0.00023585,7]
[336646487,1724997049662,-500.0,0.00023585,5]
[336646489,1724997049672,-151.0,0.00023585,7]
[336646491,1724997049682,-251.716699,0.00023585,7]
[336646493,1724997049691,-251.716699,0.00023585,7]
[336646495,1724997049703,-271.592288,0.00023585,7]
[336646498,1724997049713,-271.592288,0.00023585,7]
[336646500,1724997049723,-527.35,0.00023585,5]
[336646502,1724997049733,-151.0,0.00023585,7]
[336646504,1724997049743,-179.117021,0.00023585,7]
[336646506,1724997049754,-299.055592,0.00023585,7]
[336646508,1724997049765,-179.117021,0.00023585,7]
[336646510,1724997049775,-3300.497661,0.00023585,7]
[336646513,1724997049785,-3300.497661,0.00023585,7]
[336646515,1724997049795,-500.0,0.00023585,5]
[336646517,1724997049804,-2966.83,0.00023585,5]
[336646518,1724997049813,-247.783809,0.00023585,7]
[336646521,1724997049823,-151.0,0.00023585,7]
[336646523,1724997049833,-151.0,0.00023585,7]
[336646525,1724997049843,-206.386432,0.00023585,7]
[336646527,1724997049853,-206.386432,0.00023585,7]
[336646529,1724997049863,-500.0,0.00023585,5]
[336646531,1724997049873,-743.69,0.00023585,5]
[336646533,1724997049883,-1867.78,0.00023585,5]
[336646535,1724997049892,-2270.01,0.00023585,5]
[336646537,1724997049902,-500.0,0.00023724,2]
[336646539,1724997049911,-806.81,0.00023817,5]
[336646541,1724997049921,-500.0,0.00023818,5]
[336646543,1724997049930,-350.51488747,0.00023818,5]
[336646545,1724997049940,-500.0,0.00023818,5]
[336646547,1724997049950,-505.03090183,0.00023818,5]
[336646549,1724997049960,-500.0,0.00023818,5]
[336646551,1724997049970,-500.0,0.00023818,5]
[336646553,1724997049980,-500.0,0.00023818,5]
[336646556,1724997049990,-500.0,0.00023818,5]